fUST/lending_fUST_20260117
["ID","MTS","AMOUNT","RATE_DAILY","PERIOD"]
[402316900,1768656638706,-500.0,0.00012317,2]
[402316901,1768656638715,-500.0,0.00012317,2]
[402316902,1768656638725,-33185.01280721,0.00012318,2]
[402316903,1768656638734,-12346.0,0.00012319,2]
[402316904,1768656638744,-1000000.0,0.00012319,2]
[402316905,1768656638753,-305.06982736,0.00012337,2]
[402316906,1768656638762,-35934.8483521,0.00012428,2]
[402316907,1768656638771,-271.09512261,0.00012744,2]
[402316908,1768656638780,-2735.5713684,0.00012745,2]
[402316909,1768656638792,-2589.4825477,0.00013203,2]
[402316910,1768656638801,-171.24405273,0.00013376,2]
[402316911,1768656638811,-420.0,0.00013517,2]
[402316912,1768656638821,-1680.0,0.00013549,2]
[402316913,1768656638831,-500.0,0.00013698,2]
[402316914,1768656638841,-500.0,0.00013698,2]
[402316915,1768656638850,-500.0,0.00013698,2]
[402316916,1768656638859,-1000.0,0.00013699,2]
[402316917,1768656638869,-159.988793,0.00013699,2]
[402316918,1768656638879,-100000.0,0.00014006,2]
[402316919,1768656638888,-157.2205694,0.00014216,2]
[402316920,1768656638898,-351.60590272,0.00014337,2]
[402316921,1768656638908,-5000.0,0.0001451,2]
[402316922,1768656638918,-192.96098043,0.00014571,2]
[402316923,1768656638927,-445.202766,0.00014571,2]
[402316924,1768656638937,-2150.738,0.00014571,2]
[402316925,1768656638947,-30000.0,0.00014571,2]
[402316926,1768656638958,-162.380719,0.00014571,2]
[402316927,1768656638968,-168.3888056,0.00014571,2]
[402316928,1768656638977,-174.61919141,0.00014571,2]
[402316929,1768656639148,-181.08010149,0.00014571,2]
[402316930,1768656639162,-187.78006525,0.00014571,2]
[402316931,1768656639172,-194.72792766,0.00014571,2]
[402316932,1768656639183,-201.93286099,0.00014571,2]
[402316933,1768656639192,-209.40437684,0.00014571,2]
[402316934,1768656639202,-217.15233878,0.00014571,2]
[402316935,1768656639212,-225.18697532,0.00014571,2]
[402316936,1768656639222,-233.51889341,0.00014571,2]
[402316937,1768656639232,-242.15909246,0.00014571,2]
[402316938,1768656639241,-251.11897888,0.00014571,2]
[402316939,1768656639251,-260.4103811,0.00014571,2]
[402316940,1768656639260,-270.0455652,0.00014571,2]
[402316941,1768656639270,-280.03725112,0.00014571,2]
[402316942,1768656639279,-290.39862941,0.00014571,2]
[402316943,1768656639289,-301.1433787,0.00014571,2]
[402316944,1768656639299,-500.0,0.00014743,2]
[402316945,1768656639308,-500.0,0.00014743,2]
[402316946,1768656639319,-500.0,0.00014743,2]
[402316947,1768656639328,-587.0,0.00014834,2]
[402316948,1768656639338,-317.531912,0.00015068,2]
[402316949,1768656639347,-500.0,0.00015087,2]
[402316950,1768656639357,-461.67526834,0.00015119,2]
[402316951,1768656639366,-2230.315306,0.00015119,2]
[402316952,1768656639376,-31110.0,0.00015119,2]
[402316953,1768656639385,-198.33930279,0.000154,2]
[402316954,1768656639394,-165.64391564,0.000154,2]
[402316955,1768656639403,-478.75725327,0.00015667,2]
[402316956,1768656639413,-2312.83697232,0.00015667,2]
[402316957,1768656639422,-32261.07,0.00015667,2]
[402316958,1768656639432,-476.417731,0.00015767,2]
[402316959,1768656639441,-500.0,0.00015989,2]
[402316960,1768656639451,-500.0,0.00015989,2]
[402316961,1768656639461,-500.0,0.00015989,2]
[402316962,1768656639471,-500.0,0.00015989,2]
[402316963,1768656639480,-500.0,0.00015989,2]
[402316964,1768656639490,-3000.0,0.00016,2]
[402316965,1768656639499,-3000.0,0.0001601,2]
[402316966,1768656639509,-162.00907998,0.00016019,2]
[402316967,1768656639519,-500.0,0.00016019,2]
[402316968,1768656639531,-3000.0,0.0001602,2]
[402316969,1768656639540,-629.0,0.00016021,2]
[402316970,1768656639549,-2147.0,0.00016021,2]
[402316971,1768656639559,-1367.0,0.00016021,2]
[402316972,1768656639569,-715.0,0.00016021,2]
[402316973,1768656639578,-199.164,0.00016021,2]
[402316974,1768656639588,-417.0,0.00016021,2]
[402316975,1768656639598,-3000.0,0.0001603,2]
[402316976,1768656639607,-3000.0,0.0001604,2]
[402316977,1768656639617,-3000.0,0.0001605,2]
[402316978,1768656639626,-3000.0,0.0001606,2]
[402316979,1768656639636,-3000.0,0.0001607,2]
[402316980,1768656639645,-500.0,0.00016079,2]
[402316981,1768656639654,-3000.0,0.0001608,2]
[402316982,1768656639664,-3000.0,0.0001609,2]
[402316983,1768656639673,-3000.0,0.000161,2]
[402316984,1768656639683,-151.0,0.000161,2]
[402316985,1768656639693,-3000.0,0.0001611,2]
[402316986,1768656639702,-3000.0,0.0001612,2]
[402316987,1768656639711,-3000.0,0.0001613,2]
[402316988,1768656639721,-3000.0,0.0001614,2]
[402316989,1768656639730,-500.0,0.00016141,2]
[402316990,1768656639739,-500.0,0.00016141,2]
[402316991,1768656639748,-3000.0,0.0001615,2]
[402316992,1768656639758,-3000.0,0.0001616,2]
[402316993,1768656639767,-3000.0,0.0001617,2]
[402316994,1768656639777,-3000.0,0.0001618,2]
[402316995,1768656639791,-3000.0,0.0001619,2]
[402316996,1768656639800,-3000.0,0.000162,2]
[402316997,1768656639810,-151.0,0.000162,2]
[402316998,1768656639820,-151.0,0.000162,2]
[402316999,1768656639831,-151.0,0.000162,2]
[402317000,1768656639841,-3000.0,0.0001621,2]
[402317001,1768656639851,-496.47127164,0.00016215,2]
[402317002,1768656639861,-2398.4119403,0.00016215,2]
[402317004,1768656639870,-12663.36189165,0.00016215,2]
[402317005,1768656639881,-3000.0,0.0001622,2]
[402317006,1768656639890,-3000.0,0.0001623,2]
[402317007,1768656639900,-3000.0,0.0001624,2]
[402317008,1768656639910,-3000.0,0.0001625,2]
[402317009,1768656639921,-3000.0,0.0001626,2]
[402317010,1768656639931,-3000.0,0.0001627,2]
[402317011,1768656639941,-791.0,0.00016279,2]
[402317012,1768656639951,-3000.0,0.0001628,2]
[402317013,1768656639960,-3000.0,0.0001629,2]
[402317014,1768656639969,-3000.0,0.000163,2]
[402317015,1768656639979,-151.0,0.000163,2]
[402317016,1768656639990,-151.0,0.000163,2]
[402317017,1768656640000,-151.0,0.000163,2]
[402317018,1768656640010,-3000.0,0.0001631,2]
[402317019,1768656640020,-3000.0,0.0001632,2]
[402317020,1768656640031,-3000.0,0.0001633,2]
[402317021,1768656640041,-398.14197808,0.00016337,2]
[402317022,1768656640051,-166.43011405,0.00016338,2]
[402317023,1768656640067,-10066.36601318,0.00016338,2]
[402317024,1768656640077,-3000.0,0.0001634,2]
[402317025,1768656640086,-3000.0,0.0001635,2]
[402317026,1768656640096,-3000.0,0.0001636,2]
[402317027,1768656640108,-3000.0,0.0001637,2]
[402317028,1768656640119,-3000.0,0.0001638,2]
[402317029,1768656640128,-3000.0,0.0001639,2]
[402317030,1768656640138,-3000.0,0.000164,2]
[402317031,1768656640147,-3000.0,0.0001641,2]
[402317032,1768656640157,-3000.0,0.0001642,2]
[402317033,1768656640166,-3000.0,0.0001643,2]
[402317034,1768656640176,-500.0,0.00016438,3]
[402317035,1768656640186,-500.0,0.00016438,3]
[402317036,1768656640195,-634.11,0.00016438,3]
[402317037,1768656640204,-688.7,0.00016438,3]
[402317038,1768656640215,-500.0,0.00016438,3]
[402317039,1768656640225,-500.0,0.00016438,3]
[402317040,1768656640234,-500.0,0.00016438,3]
[402317041,1768656640243,-653.25,0.00016438,3]
[402317042,1768656640253,-500.0,0.00016438,3]
[402317043,1768656640264,-719.05,0.00016438,3]
[402317044,1768656640276,-500.0,0.00016438,3]
[402317045,1768656640285,-558.65271499,0.00016438,3]
[402317046,1768656640295,-500.0,0.00016438,3]
[402317047,1768656640306,-500.0,0.00016438,3]
[402317048,1768656640316,-500.0,0.00016438,3]
[402317049,1768656640328,-911.9,0.00016438,3]
[402317050,1768656640339,-500.0,0.00016438,3]
[402317051,1768656640349,-500.0,0.00016438,3]
[402317052,1768656640359,-664.42,0.00016438,3]
[402317053,1768656640368,-500.0,0.00016438,3]
[402317054,1768656640377,-613.45,0.00016438,3]
[402317055,1768656640386,-500.0,0.00016438,3]
[402317056,1768656640395,-732.11,0.00016438,3]
[402317057,1768656640405,-500.0,0.00016438,3]
[402317058,1768656640414,-500.0,0.00016438,3]
[402317059,1768656640424,-500.0,0.00016438,3]
[402317060,1768656640433,-500.0,0.00016438,3]
[402317061,1768656640443,-500.0,0.00016438,3]
[402317062,1768656640453,-500.0,0.00016438,3]
[402317063,1768656640462,-500.0,0.00016438,3]
[402317064,1768656640471,-500.0,0.00016438,3]
[402317065,1768656640482,-500.0,0.00016438,3]
[402317066,1768656640492,-500.0,0.00016438,3]
[402317067,1768656640502,-1041.14,0.00016438,3]
[402317068,1768656640512,-500.0,0.00016438,3]
[402317069,1768656640523,-500.0,0.00016438,3]
[402317070,1768656640532,-500.0,0.00016438,3]
[402317071,1768656640542,-500.0,0.00016438,3]
[402317072,1768656640551,-543.83,0.00016438,3]
[402317073,1768656640561,-500.0,0.00016438,3]
[402317074,1768656640571,-533.56,0.00016438,3]
[402317075,1768656640581,-500.0,0.00016438,3]
[402317076,1768656640590,-500.0,0.00016438,3]
[402317077,1768656640599,-500.0,0.00016438,3]
[402317078,1768656640609,-661.09,0.00016438,3]
[402317079,1768656640618,-631.97,0.00016438,3]
[402317080,1768656640628,-639.88,0.00016438,3]
[402317081,1768656640637,-929.11,0.00016438,3]
[402317082,1768656640646,-500.0,0.00016438,3]
[402317083,1768656640656,-500.0,0.00016438,3]
[402317084,1768656640665,-500.0,0.00016438,3]
[402317085,1768656640675,-1324.97,0.00016438,3]
[402317086,1768656640685,-500.0,0.00016438,3]
[402317087,1768656640695,-500.0,0.00016438,3]
[402317088,1768656640704,-500.0,0.00016438,3]
[402317089,1768656640713,-614.07,0.00016438,3]
[402317090,1768656640722,-500.0,0.00016438,3]
[402317091,1768656640732,-635.25706482,0.00016438,3]
[402317092,1768656640741,-500.0,0.00016438,3]
[402317093,1768656640750,-500.0,0.00016438,3]
[402317094,1768656640759,-1038.86,0.00016438,3]
[402317095,1768656640768,-500.0,0.00016438,3]
[402317096,1768656640778,-577.63,0.00016438,3]
[402317097,1768656640790,-500.0,0.00016438,3]
[402317098,1768656640799,-500.0,0.00016438,3]
[402317099,1768656640809,-680.79,0.00016438,3]
[402317100,1768656640818,-500.0,0.00016438,3]
[402317101,1768656640830,-500.0,0.00016438,3]
[402317102,1768656640841,-500.0,0.00016438,3]
[402317103,1768656640853,-500.0,0.00016438,3]
[402317104,1768656640864,-674.81,0.00016438,3]
[402317105,1768656640874,-528.34,0.00016438,3]
[402317106,1768656640885,-500.0,0.00016438,3]
[402317107,1768656640895,-500.0,0.00016438,3]
[402317108,1768656640905,-500.0,0.00016438,3]
[402317109,1768656640917,-500.0,0.00016438,3]
[402317110,1768656640928,-500.0,0.00016438,3]
[402317111,1768656640937,-500.0,0.00016438,3]
[402317112,1768656640947,-500.0,0.00016438,3]
[402317113,1768656640956,-500.0,0.00016438,3]
[402317114,1768656640966,-500.0,0.00016438,3]
[402317115,1768656640977,-500.0,0.00016438,3]
[402317116,1768656640987,-630.77,0.00016438,3]
[402317117,1768656640998,-500.0,0.00016438,3]
[402317118,1768656641009,-1156.52,0.00016438,3]
[402317119,1768656641018,-500.0,0.00016438,3]
[402317120,1768656641029,-500.0,0.00016438,3]
[402317121,1768656641039,-500.0,0.00016438,3]
[402317122,1768656641048,-855.19,0.00016438,3]
[402317123,1768656641057,-500.0,0.00016438,3]
[402317124,1768656641067,-500.0,0.00016438,3]
[402317125,1768656641076,-500.0,0.00016438,3]
[402317126,1768656641086,-500.0,0.00016438,3]
[402317127,1768656641095,-500.0,0.00016438,3]
[402317128,1768656641105,-992.52,0.00016438,3]
[402317129,1768656641114,-597.94,0.00016438,3]
[402317130,1768656641124,-955.86,0.00016438,3]
[402317131,1768656641133,-500.0,0.00016438,3]
[402317132,1768656641143,-500.0,0.00016438,3]
[402317133,1768656641153,-500.0,0.00016438,3]
[402317134,1768656641162,-500.0,0.00016438,3]
[402317135,1768656641171,-500.0,0.00016438,3]
[402317136,1768656641180,-500.0,0.00016438,3]
[402317137,1768656641190,-533.87958075,0.00016438,3]
[402317138,1768656641199,-500.0,0.00016438,3]
[402317139,1768656641208,-500.0,0.00016438,3]
[402317140,1768656641217,-1061.21,0.00016438,3]
[402317141,1768656641227,-500.0,0.00016438,2]
[402317142,1768656641236,-1178.5,0.00016438,3]
[402317143,1768656641245,-500.0,0.00016438,3]
[402317144,1768656641255,-500.0,0.00016438,3]
[402317145,1768656641263,-477.91575694,0.00016438,3]
[402317146,1768656641273,-360.7676184,0.00016438,3]
[402317147,1768656641283,-432.39590391,0.00016438,3]
[402317148,1768656641292,-500.0,0.00016438,3]
[402317149,1768656641302,-500.0,0.00016438,3]
[402317150,1768656641311,-500.0,0.00016438,3]
[402317151,1768656641321,-500.0,0.00016438,3]
[402317152,1768656641330,-500.0,0.00016438,3]
[402317153,1768656641340,-450.62151726,0.00016438,3]
[402317154,1768656641350,-500.0,0.00016438,3]
[402317155,1768656641359,-500.0,0.00016438,3]
[402317156,1768656641368,-500.0,0.00016438,3]
[402317157,1768656641377,-602.5,0.00016438,3]
[402317158,1768656641386,-500.0,0.00016438,3]
[402317159,1768656641396,-500.0,0.00016438,3]
[402317160,1768656641405,-500.0,0.00016438,3]
[402317161,1768656641415,-500.0,0.00016438,3]
[402317162,1768656641424,-722.49,0.00016438,3]
[402317163,1768656641434,-1095.5,0.00016438,3]
[402317164,1768656641443,-500.0,0.00016438,3]
[402317165,1768656641453,-773.99,0.00016438,3]
[402317166,1768656641463,-500.0,0.00016438,3]
[402317167,1768656641472,-500.0,0.00016438,3]
[402317168,1768656641481,-500.0,0.00016438,3]
[402317169,1768656641491,-1486.49,0.00016438,3]
[402317170,1768656641501,-542.79,0.00016438,3]
[402317171,1768656641849,-500.0,0.00016438,3]
[402317172,1768656641873,-500.0,0.00016438,3]
[402317173,1768656641883,-500.0,0.00016438,3]
[402317174,1768656641893,-500.0,0.00016438,3]
[402317175,1768656641903,-719.73,0.00016438,3]
[402317176,1768656641913,-500.0,0.00016438,3]
[402317177,1768656641923,-500.0,0.00016438,3]
[402317178,1768656641933,-500.0,0.00016438,3]
[402317179,1768656641944,-500.0,0.00016438,3]
[402317180,1768656641959,-500.0,0.00016438,3]
[402317181,1768656641970,-500.0,0.00016438,3]
[402317182,1768656641981,-500.0,0.00016438,3]
[402317183,1768656641991,-500.0,0.00016438,3]
[402317184,1768656642002,-833.28,0.00016438,3]
[402317185,1768656642014,-500.0,0.00016438,3]
[402317186,1768656642025,-500.0,0.00016438,3]
[402317187,1768656642036,-500.0,0.00016438,3]
[402317188,1768656642047,-500.0,0.00016438,3]
[402317189,1768656642057,-500.0,0.00016438,3]
[402317190,1768656642066,-500.0,0.00016438,3]
[402317191,1768656642078,-984.64,0.00016438,3]
[402317192,1768656642088,-619.89,0.00016438,3]
[402317193,1768656642100,-740.13,0.00016438,3]
[402317194,1768656642110,-500.0,0.00016438,3]
[402317195,1768656642121,-500.0,0.00016438,3]
[402317196,1768656642131,-885.07,0.00016438,3]
[402317197,1768656642143,-500.0,0.00016438,3]
[402317198,1768656642152,-923.07,0.00016438,3]
[402317199,1768656642163,-500.0,0.00016438,3]
[402317200,1768656642174,-572.42,0.00016438,3]
[402317201,1768656642186,-500.0,0.00016438,3]
[402317202,1768656642198,-500.0,0.00016438,3]
[402317203,1768656642210,-500.0,0.00016438,3]
[402317204,1768656642220,-500.0,0.00016438,3]
[402317205,1768656642230,-500.0,0.00016438,3]
[402317206,1768656642240,-695.04,0.00016438,3]
[402317207,1768656642250,-901.99,0.00016438,3]
[402317208,1768656642260,-500.0,0.00016438,3]
[402317209,1768656642270,-1279.57,0.00016438,3]
[402317210,1768656642282,-500.0,0.00016438,3]
[402317211,1768656642292,-891.29,0.00016438,3]
[402317212,1768656642303,-570.29,0.00016438,3]
[402317213,1768656642313,-534.63,0.00016438,3]
[402317214,1768656642324,-500.0,0.00016438,3]
[402317215,1768656642334,-500.0,0.00016438,3]
[402317216,1768656642345,-500.0,0.00016438,3]
[402317217,1768656642357,-500.0,0.00016438,3]
[402317218,1768656642368,-523.27211583,0.00016438,3]
[402317219,1768656642378,-500.0,0.00016438,3]
[402317220,1768656642388,-724.68,0.00016438,3]
[402317221,1768656642400,-891.73,0.00016438,3]
[402317223,1768656642412,-500.0,0.00016438,3]
[402317225,1768656642423,-500.0,0.00016438,3]
[402317227,1768656642433,-513.15,0.00016438,3]
[402317230,1768656642447,-500.0,0.00016438,3]
[402317231,1768656642457,-500.0,0.00016438,3]
[402317233,1768656642467,-500.0,0.00016438,3]
[402317235,1768656642478,-500.0,0.00016438,3]
[402317237,1768656642488,-567.58,0.00016438,3]
[402317238,1768656642499,-500.0,0.00016438,3]
[402317240,1768656642508,-500.0,0.00016438,3]
[402317242,1768656642518,-1154.28,0.00016438,3]
[402317243,1768656642528,-500.0,0.00016438,3]
[402317244,1768656642539,-577.67,0.00016438,3]
[402317245,1768656642549,-500.0,0.00016438,3]
[402317246,1768656642558,-500.0,0.00016438,3]
[402317247,1768656642569,-1369.12,0.00016438,3]
[402317249,1768656642579,-500.0,0.00016438,3]
[402317251,1768656642589,-500.0,0.00016438,3]
[402317253,1768656642600,-1336.8,0.00016438,3]
[402317256,1768656642610,-500.0,0.00016438,3]
[402317257,1768656642620,-500.0,0.00016438,3]
[402317258,1768656642631,-500.0,0.00016438,3]
[402317259,1768656642640,-500.0,0.00016438,3]
[402317260,1768656642651,-786.68,0.00016438,3]
[402317261,1768656642661,-500.0,0.00016438,3]
[402317262,1768656642670,-559.64,0.00016438,3]
[402317263,1768656642680,-638.56,0.00016438,3]
[402317264,1768656642691,-500.0,0.00016438,3]
[402317265,1768656642700,-500.0,0.00016438,3]
[402317266,1768656642711,-529.62,0.00016438,3]
[402317267,1768656642722,-226.36836068,0.00016438,3]
[402317268,1768656642732,-678.16,0.00016438,3]
[402317269,1768656642742,-500.0,0.00016438,3]
[402317270,1768656642752,-500.0,0.00016438,3]
[402317271,1768656642762,-535.6,0.00016438,3]
[402317272,1768656642772,-500.0,0.00016438,3]
[402317273,1768656642782,-500.0,0.00016438,3]
[402317274,1768656642794,-716.36,0.00016438,3]
[402317275,1768656642804,-500.0,0.00016438,3]
[402317276,1768656642816,-500.0,0.00016438,3]
[402317277,1768656642826,-500.0,0.00016438,3]
[402317278,1768656642836,-500.0,0.00016438,3]
[402317279,1768656642846,-1478.09,0.00016438,3]
[402317280,1768656642856,-500.0,0.00016438,3]
[402317281,1768656642865,-500.0,0.00016438,3]
[402317282,1768656642875,-603.09404447,0.00016438,3]
[402317283,1768656642885,-500.0,0.00016438,3]
[402317284,1768656642895,-1005.65,0.00016438,3]
[402317285,1768656642908,-1191.08,0.00016438,3]
[402317286,1768656642918,-1307.93,0.00016438,3]
[402317287,1768656642929,-500.0,0.00016438,3]
[402317288,1768656642938,-747.34,0.00016438,3]
[402317289,1768656642948,-500.0,0.00016438,3]
[402317290,1768656642957,-500.0,0.00016438,3]
[402317291,1768656642967,-366.90242144,0.00016438,3]
[402317292,1768656642977,-500.0,0.00016438,3]
[402317293,1768656642987,-801.03,0.00016438,3]
[402317294,1768656642996,-500.0,0.00016438,3]
[402317295,1768656643006,-500.0,0.00016438,3]
[402317296,1768656643015,-500.0,0.00016438,3]
[402317297,1768656643026,-500.0,0.00016438,3]
[402317298,1768656643036,-511.37056454,0.00016438,3]
[402317299,1768656643046,-500.0,0.00016438,3]
[402317300,1768656643055,-763.32,0.00016438,3]
[402317302,1768656643065,-500.0,0.00016438,3]
[402317303,1768656643075,-500.0,0.00016438,3]
[402317304,1768656643086,-500.0,0.00016438,3]
[402317306,1768656643096,-679.73,0.00016438,3]
[402317308,1768656643105,-1111.45,0.00016438,3]
[402317310,1768656643115,-500.0,0.00016438,3]
[402317312,1768656643125,-500.0,0.00016438,3]
[402317314,1768656643134,-783.41,0.00016438,3]
[402317316,1768656643144,-500.0,0.00016438,3]
[402317318,1768656643154,-1057.6,0.00016438,3]
[402317321,1768656643164,-1813.94,0.00016438,3]
[402317323,1768656643174,-500.0,0.00016438,3]
[402317325,1768656643183,-500.0,0.00016438,3]
[402317327,1768656643194,-500.0,0.00016438,3]
[402317329,1768656643203,-952.4,0.00016438,3]
[402317331,1768656643213,-500.0,0.00016438,3]
[402317333,1768656643223,-500.0,0.00016438,3]
[402317335,1768656643233,-500.0,0.00016438,3]
[402317337,1768656643243,-151.0,0.00016438,3]
[402317339,1768656643253,-500.0,0.00016438,3]
[402317340,1768656643263,-661.27,0.00016438,3]
[402317341,1768656643273,-500.0,0.00016438,3]
[402317342,1768656643283,-500.0,0.00016438,3]
[402317343,1768656643292,-500.0,0.00016438,3]
[402317344,1768656643303,-500.0,0.00016438,3]
[402317345,1768656643314,-1000.0,0.00016438,2]
[402317346,1768656643324,-1124.92,0.00016438,3]
[402317347,1768656643334,-500.0,0.00016438,3]
[402317348,1768656643343,-500.0,0.00016438,3]
[402317349,1768656643353,-500.0,0.00016438,3]
[402317350,1768656643363,-1140.77,0.00016438,3]
[402317351,1768656643372,-500.0,0.00016438,3]
[402317352,1768656643382,-500.0,0.00016438,3]
[402317353,1768656643392,-500.0,0.00016438,3]
[402317354,1768656643402,-814.71,0.00016438,3]
[402317355,1768656643412,-428.83246547,0.00016438,3]
[402317356,1768656643422,-2065.11,0.00016438,3]
[402317357,1768656643431,-500.0,0.00016438,3]
[402317358,1768656643441,-637.37,0.00016438,3]
[402317359,1768656643450,-500.0,0.00016438,3]
[402317360,1768656643472,-500.0,0.00016438,3]
[402317361,1768656643483,-500.0,0.00016438,3]
[402317362,1768656643494,-798.04,0.00016438,3]
[402317363,1768656643504,-500.0,0.00016438,3]
[402317364,1768656643515,-500.0,0.00016438,3]
[402317365,1768656643525,-500.0,0.00016438,3]
[402317366,1768656643536,-508.48,0.00016438,3]
[402317367,1768656643547,-500.0,0.00016438,3]
[402317368,1768656643558,-1523.17,0.00016438,3]
[402317369,1768656643568,-1341.26,0.00016438,3]
[402317370,1768656643579,-500.0,0.00016438,3]
[402317371,1768656643589,-500.0,0.00016438,3]
[402317372,1768656643600,-500.0,0.00016438,3]
[402317373,1768656643611,-500.0,0.00016438,3]
[402317374,1768656643622,-500.0,0.00016438,3]
[402317375,1768656643633,-500.0,0.00016438,3]
[402317376,1768656643644,-500.0,0.00016438,3]
[402317377,1768656643654,-500.0,0.00016438,3]
[402317378,1768656643665,-500.0,0.00016438,3]
[402317379,1768656643675,-736.23,0.00016438,3]
[402317380,1768656643686,-1540.25,0.00016438,3]
[402317381,1768656643697,-500.0,0.00016438,3]
[402317382,1768656643707,-500.0,0.00016438,3]
[402317383,1768656643717,-721.87,0.00016438,3]
[402317384,1768656643727,-988.81,0.00016438,3]
[402317385,1768656643737,-500.0,0.00016438,3]
[402317386,1768656643747,-500.0,0.00016438,3]
[402317387,1768656643757,-500.0,0.00016438,3]
[402317388,1768656643767,-959.35,0.00016438,3]
[402317389,1768656643777,-500.0,0.00016438,3]
[402317390,1768656643787,-500.0,0.00016438,3]
[402317391,1768656643796,-529.06,0.00016438,3]
[402317392,1768656643808,-557.35,0.00016438,3]
[402317393,1768656643819,-500.0,0.00016438,3]
[402317394,1768656643830,-601.89,0.00016438,3]
[402317395,1768656643840,-1191.35,0.00016438,3]
[402317396,1768656643850,-500.0,0.00016438,3]
[402317397,1768656643860,-500.0,0.00016438,3]
[402317398,1768656643870,-500.0,0.00016438,3]
[402317399,1768656643881,-500.0,0.00016438,3]
[402317400,1768656643890,-776.17,0.00016438,3]
[402317401,1768656643900,-500.0,0.00016438,3]
[402317402,1768656643910,-1434.23,0.00016438,3]
[402317403,1768656643920,-740.41,0.00016438,3]
[402317404,1768656643930,-434.50935907,0.00016438,3]
[402317405,1768656643940,-500.0,0.00016438,3]
[402317406,1768656643952,-500.0,0.00016438,3]
[402317407,1768656643961,-500.0,0.00016438,3]
[402317408,1768656643972,-500.0,0.00016438,3]
[402317409,1768656643982,-500.0,0.00016438,3]
[402317410,1768656643993,-1631.91,0.00016438,3]
[402317411,1768656644003,-877.81,0.00016438,3]
[402317412,1768656644013,-500.0,0.00016438,3]
[402317413,1768656644023,-635.4,0.00016438,3]
[402317414,1768656644034,-500.0,0.00016438,3]
[402317415,1768656644044,-527.75,0.00016438,3]
[402317416,1768656644055,-522.93,0.00016438,3]
[402317417,1768656644064,-500.0,0.00016438,3]
[402317418,1768656644075,-500.0,0.00016438,3]
[402317419,1768656644084,-500.0,0.00016438,3]
[402317420,1768656644096,-297.83109414,0.00016438,3]
[402317421,1768656644108,-155.26133313,0.00016438,3]
[402317423,1768656645470,-344.73866687,0.00016438,3]
[402317424,1768656645480,-500.0,0.00016438,3]
[402317425,1768656645490,-500.0,0.00016438,3]
[402317426,1768656645500,-500.0,0.00016438,3]
[402317427,1768656645509,-500.0,0.00016438,3]
[402317428,1768656645519,-500.0,0.00016438,3]
[402317429,1768656645529,-500.0,0.00016438,3]
[402317430,1768656645539,-500.0,0.00016438,3]
[402317431,1768656645549,-500.0,0.00016438,3]
[402317432,1768656645559,-500.0,0.00016438,3]
[402317433,1768656645569,-646.06,0.00016438,3]
[402317434,1768656645579,-1313.81,0.00016438,3]
[402317435,1768656645589,-1125.41,0.00016438,3]